Cogmind - Beta 16 @@@ ROGUE MODE // 2025.10.31 @ 15:30:45 Player: Spoodle Result: Destroyed by P1-3CE with P1-3CE's Gatling Flakker Performance ------------- Evolutions (1) 500 Regions Visited (6) 1200 Robots Destroyed (125) 625 Value Destroyed (2564) 2564 Prototype IDs (41) 820 Alien Tech Used (0) 0 Bonus (368) 368 TOTAL SCORE: 6077 Bonus ------- High Alert Combat Kills 68 Aligned with FarCom 300 Cogmind --------- Core Integrity 0/400 Matter 248/300 Energy 99/100 System Corruption 3% Temperature Cool (2) Movement Hovering (110) Ox1 Location -8/Mines Parts ------- > --- POWER (1) -------- (None) > --- PROPULSION (3) --- Gravmag Array > --- UTILITY (2) ------ Large Storage Unit > --- WEAPON (3) ------- Improved Assault Rifle > --- INVENTORY (15) --- Reinforced Fission Core Makeshift Hover Unit Experimental Heat Sink High-capacity Storage Unit Compact Matter Pod (150) Gravity Neutralizer Modified TNC Experimental Core Analyzer Makeshift ECM Suite Cloak of Protection Advanced Recalibrator Guided Plasma Cannon Improved Assault Rifle Rocket Launcher Datajack Peak State ------------ > --- POWER ------------ Reinforced Fission Core > --- PROPULSION ------- Gravmag Array Makeshift Hover Unit > --- UTILITY ---------- High-capacity Storage Unit Medium Armor Plating > --- WEAPON ----------- Autogun Improved Assault Rifle Improved Assault Rifle > --- INVENTORY -------- Makeshift Power Source Light Treads Armored Wheel Makeshift Hover Unit Experimental Heat Sink Large Storage Unit Compact Matter Pod Gravity Neutralizer Modified TNC Experimental Core Analyzer Makeshift ECM Suite Cloak of Protection Advanced Recalibrator Guided Plasma Cannon Improved Assault Rifle Rocket Launcher Mini Grenade Launcher Datajack [Rating: 40] Favorites ----------- Power Heavy Ion Engine Engine Heavy Ion Engine Power Core Reinforced Fission Core Propulsion Light Treads Treads Light Treads Leg Aluminum Leg Wheel Armored Wheel Hover Unit Makeshift Hover Unit Utility High-capacity Storage Unit Device Cooling System Storage High-capacity Storage Unit Hackware Hacking Suite Protection Medium Armor Plating Weapon Improved Assault Rifle Energy Gun Medium Laser Energy Cannon Guided Plasma Cannon Ballistic Gun Improved Assault Rifle Launcher Mini Grenade Launcher Special Melee Weapon Datajack Build | -11 -10 -10 -9 -9 -9 -8 ------- Run | Yrd Mat Min Mat Min Exi Min Slots Evolved 2 | . . . 2 . . . Power . | . . . . . . . Propulsion 1 | . . . 1 . . . Utility . | . . . . . . . Weapon 1 | . . . 1 . . . Parts Attached 71 | 7 14 . 32 2 11 5 Power 8 | 1 2 . 2 . 2 1 Engine 6 | 1 2 . 1 . 1 1 Core 2 | . . . 1 . 1 . Reactor . | . . . . . . . Propulsion 28 | 2 5 . 13 . 5 3 Treads 19 | . 4 . 12 . 3 . Leg 3 | 2 . . . . 1 . Wheel 3 | . 1 . 1 . 1 . Hover 3 | . . . . . . 3 Flight . | . . . . . . . Utility 15 | 2 5 . 5 1 1 1 Device 5 | 1 2 . 1 . . 1 Storage 4 | 1 2 . 1 . . . Processor . | . . . . . . . Hackware 1 | . . . 1 . . . Protection 5 | . 1 . 2 1 1 . Artifact . | . . . . . . . Weapon 20 | 2 2 . 12 1 3 . Energy Gun 6 | 1 . . 5 . . . Energy Cannon 1 | . . . . . 1 . Ballistic Gun 10 | 1 2 . 5 1 1 . Ballistic Cannon . | . . . . . . . Launcher 2 | . . . 2 . . . Special Weapon . | . . . . . . . Impact Weapon . | . . . . . . . Slashing Weapon . | . . . . . . . Piercing Weapon . | . . . . . . . Special Melee Weapon 1 | . . . . . 1 . Unidentified Prototypes 4 | . 2 . 2 . . . Parts Lost 15 | . . . 4 1 6 4 Power 2 | . . . 1 . . 1 Propulsion 5 | . . . . . 3 2 Utility 3 | . . . 1 1 1 . Weapon 5 | . . . 2 . 2 1 Highest Loss Streak 4 | . . . 3 1 3 4 To Critical Strikes 3 | . . . . . 3 . Average Backups 15 | 3 9 14 18 20 17 18 Power 1 | . 1 1 . . 1 1 Propulsion 4 | 2 3 5 5 5 3 3 Utility 5 | . 2 4 6 7 6 9 Weapon 4 | . 1 3 4 6 6 3 Tool/Special . | . . . . . . . Unused Backups 32 | 1 4 . 10 . 9 8 Power 6 | 1 2 . . . 3 . Propulsion 2 | . . . 2 . . . Utility 16 | . . . 3 . 6 7 Weapon 8 | . 2 . 5 . . 1 Tool/Special . | . . . . . . . Average Slot Usage (%) 95 | . 99 100 99 99 84 94 Engine 11 | . 13 14 10 11 9 1 Treads 23 | . 23 28 24 22 22 17 Leg 1 | . 3 . . . . . Wheel 5 | . . . 8 11 10 8 Device 4 | . 8 5 5 . . 2 Storage 12 | . 14 14 11 11 11 11 Protection 7 | . 5 8 5 10 11 6 Energy Gun 4 | . 7 . 6 . . . Ballistic Gun 23 | . 20 28 25 32 16 31 Peak Build Rating 40 | 7 15 15 23 22 30 40 Average Rating 17 | 5 10 14 20 20 19 32 On Entrance 15 | . 7 15 15 22 21 30 Avg Prop Armor Cover (%) 14 | . . . 14 12 15 11 Naked Turns . | . . . . . . . Heaviest Build 78 | 15 37 37 65 64 77 78 Greatest Support 60 | 20 40 40 60 12 60 32 Greatest Overweight (x) 6 | . 2 . 5 5 6 6 Average Overweight (x) 2 | . . . 3 4 4 4 Largest Inventory Capacity 20 | 8 15 15 20 20 20 20 Average Capacity 16 | 7 11 15 19 20 20 19 Most Carried 20 | 6 14 14 20 20 20 20 Average Carried 15 | 3 9 14 18 19 17 19 Final Capacity 20 | 8 15 15 20 20 20 15 Final Carried 20 | 6 14 14 20 20 20 15 Class Distribution -------------------- 42% | Mutant 35% | Tank 9% | Scavenger-Gunner 7% | Scavenger-Mutant 4% | Gunner Dominant Class ---------------- Mutant | -10/Materials Mutant | -10/Mines Tank | -9/Materials Tank | -9/Mines Tank | -9/Exiles Tank | -8/Mines Resources | -11 -10 -10 -9 -9 -9 -8 ----------- Run | Yrd Mat Min Mat Min Exi Min Matter Collected 3900 | 318 527 130 1592 161 1044 128 Remotely 281 | 134 147 . . . . . Salvage Created 3999 | 163 731 212 2242 222 393 36 Parts 285 | 13 56 11 128 20 54 3 Haulers Intercepted 8 | . 2 . 6 . . . Recyclers Shooed 3 | . 1 . 2 . . . Parts Field Recycled . | . . . . . . . Retrieved Matter . | . . . . . . . Parts Self-Destructed . | . . . . . . . Prevented . | . . . . . . . Parts Restored . | . . . . . . . Kills | -11 -10 -10 -9 -9 -9 -8 ------- Run | Yrd Mat Min Mat Min Exi Min Combat Hostiles Destroyed 78 | . 18 4 39 10 7 . Guns 65 | . 18 4 35 4 4 . AOE 13 | . . . 4 6 3 . Classes Destroyed 16 | 2 6 1 2 2 3 . Worker 8 | . 3 . 4 1 . . Builder 2 | . . 1 1 . . . Tunneler 10 | 4 . 1 3 . . 2 Hauler 8 | . 2 . 6 . . . Recycler 3 | 1 . . 2 . . . Mechanic 1 | . . . 1 . . . Operator 3 | . 2 . 1 . . . Turret 1 | . . . . . 1 . Watcher 7 | . 2 . 5 . . . Swarmer 19 | . 6 . 7 6 . . Grunt 42 | . 12 4 24 2 . . Brawler 1 | . . . . 1 . . Duelist 1 | . . . . 1 . . Sentry 8 | . . . 8 . . . Zionite 8 | . . . . . 8 . Assembled 6 | . . . . . 6 . Best Kill Streak 6 | 4 4 2 6 3 6 1 Combat Bots Only 6 | . 3 2 4 3 6 . Max Kills in Single Turn 5 | 1 1 1 5 3 2 1 Gunslinging 1 | . . . 1 1 . . Exploded 3 | . . . 3 3 2 . Melee . | . . . . . . . Uniques/NPCs Destroyed 4 | . . . . . 4 . 8R-AWN (-9/Exiles) EX-BIN (-9/Exiles) EX-HEX (-9/Exiles) EX-DEC (-9/Exiles) Combat | -11 -10 -10 -9 -9 -9 -8 -------- Run | Yrd Mat Min Mat Min Exi Min Hostile Shots Fired 397 | . 71 22 161 20 75 48 Missed 100 | . 21 7 41 4 16 11 Hits 297 | . 50 15 120 16 59 37 Melee 3 | . . . . 3 . . Projectile 294 | . 50 15 120 13 59 37 Critical Strikes 35 | . . 1 2 1 31 . Damage Taken 4162 | . 524 220 1449 204 1055 710 Core 556 | . 110 45 149 6 62 184 Absorbed by Shields . | . . . . . . . Regen/Repaired (Parts) 248 | . 180 . 68 . . . Core Remaining (%) 69 | 100 . 38 . . . . Volleys Fired 326 | 16 84 14 120 11 78 3 Largest 3 | 2 2 2 3 3 3 3 Hottest 149 | 70 70 46 149 109 120 69 Shots Fired 806 | 32 169 27 342 25 204 7 Gun 785 | 32 169 27 337 21 192 7 Cannon 9 | . . . . . 9 . Launcher 12 | . . . 5 4 3 . Special . | . . . . . . . Kinetic 664 | 16 107 27 299 16 192 7 Thermal 130 | 16 62 . 38 5 9 . Explosive 12 | . . . 5 4 3 . Electromagnetic . | . . . . . . . Robot Hit Streak 22 | 4 10 22 18 10 18 8 Robot Miss Streak 4 | 2 4 1 4 2 3 . Penetration Max . | . . . . . . . Secondary Targets 6 | . 1 . 4 1 . . Max Gunslinging Chain 1 | . 1 . 1 1 . . Shots Hit Robots 506 | 19 96 25 203 17 141 5 Core Hits 225 | 6 48 10 92 17 50 2 Critical Kills . | . . . . . . . Critical Parts Destroyed 5 | . 2 . 2 . 1 . Critical Strikes 11 | 1 5 . 2 . 3 . Burn 4 | 1 3 . . . . . Destroy 7 | . 2 . 2 . 3 . Melee Attacks 3 | . . . . . 3 . Impact . | . . . . . . . Slashing . | . . . . . . . Piercing . | . . . . . . . Sneak Attacks 3 | . . . . . 3 . Combat Hostiles . | . . . . . . . Follow-up Attacks . | . . . . . . . Damage Inflicted 9034 | 241 1380 455 3691 619 2573 75 Guns 7426 | 241 1309 382 3128 255 2036 75 Cannons 325 | . . . . . 325 . Explosions 1100 | . . . 524 364 212 . Melee . | . . . . . . . Ramming 183 | . 71 73 39 . . . Kinetic 6577 | 128 949 382 2801 206 2036 75 Thermal 1174 | 113 360 . 327 49 325 . Explosive 1100 | . . . 524 364 212 . Electromagnetic . | . . . . . . . Impact . | . . . . . . . Slashing . | . . . . . . . Piercing . | . . . . . . . Highest Corruption 3 | . 3 3 . 3 3 3 Average Corruption 2 | . 2 3 . 3 3 3 Corruption Purged . | . . . . . . . Corruption Blocked . | . . . . . . . Effects 93 | . 24 15 . 13 37 4 Message Errors 20 | . 5 3 . 5 6 1 Matter Fused 24 | . 6 5 . 5 8 . Heat Flow Errors 5 | . 1 2 . 1 . 1 Energy Discharges 15 | . 6 . . 1 6 2 Parts Rejected 2 | . . 1 . . 1 . Parts Fused 1 | . 1 . . . . . Data Loss (minor) 12 | . 2 2 . 1 7 . Data Loss (major) 4 | . 1 1 . . 2 . Misfires 5 | . 2 . . . 3 . Alerts 1 | . . . . . 1 . Weapon Failures 4 | . . 1 . . 3 . Overload Shots . | . . . . . . . Overflow Damage 68 | . . . 34 9 25 . Projectiles 25 | . . . . . 25 . Explosions 43 | . . . 34 9 . . Melee . | . . . . . . . Knockbacks 1 | . 1 . . . . . Impact 1 | . 1 . . . . . Kinetic . | . . . . . . . Secondary . | . . . . . . . Self-Inflicted Damage 109 | . . . 53 12 44 . Shots 4 | . . . 2 1 1 . Rammed 26 | . 12 10 4 . . . Targets Rammed 32 | . 17 11 4 . . . Kicked 4 | . 4 . . . . . Crushed 2 | . 1 1 . . . . Highest Temperature 251 | 126 251 248 149 172 246 233 Average Temperature 45 | 58 32 59 35 69 66 88 Received Heat Transfer 942 | . 198 147 561 36 . . Effects 1 | . 1 . . . . . Energy Bleed 1 | . 1 . . . . . Siege Activations . | . . . . . . . Martial Activations . | . . . . . . . Shielding Activations . | . . . . . . . Robots Disrupted . | . . . . . . . Combat Hostiles . | . . . . . . . Robots Corrupted . | . . . . . . . Combat Hostiles . | . . . . . . . Parts Fried . | . . . . . . . Impact Corruptions . | . . . . . . . Robots Melted . | . . . . . . . Combat Hostiles . | . . . . . . . Parts Melted 4 | . 2 . 2 . . . Heat Transferred 3310 | 407 1295 . 777 111 720 . Parts Sabotaged . | . . . . . . . Parts Stolen . | . . . . . . . Parts Stripped . | . . . . . . . Power Chain Reactions . | . . . . . . . Alert | -11 -10 -10 -9 -9 -9 -8 ------- Run | Yrd Mat Min Mat Min Exi Min Maximum Alert Level 2 | . 1 . 2 1 . . Low Security (%) 69 | 100 78 100 46 73 . 100 Level 1 25 | . 21 . 39 26 . . Level 2 5 | . . . 14 . . . Level 3 . | . . . . . . . Level 4 . | . . . . . . . Level 5 . | . . . . . . . High Security . | . . . . . . . Max Security . | . . . . . . . Peak Influence 543 | 10 260 110 543 260 . 5 Initial 150 | . . 60 . 150 . . Average 155 | 1 112 19 255 155 . . Influence Increases 2435 | 25 662 125 1336 277 . 10 Destroy 0b10 Robot/C 1420 | . 360 80 780 200 . . Destroy 0b10 Robot/NC 210 | 25 45 10 115 5 . 10 Destroy Leader 350 | . 78 20 212 40 . . Successful Hack 75 | . 37 . 38 . . . Select Force Hacks 90 | . 30 . 60 . . . Disable Machine 30 | . . . 30 . . . Destroy Structure 80 | . 7 . 41 32 . . Lose Combat Pursuer 180 | . 105 15 60 . . . Influence Decreases 2435 | 25 507 280 950 548 115 10 Entered New Map 446 | . . 95 . 236 115 . Time Decay 1624 | 25 507 175 610 302 . 5 Lost Part 55 | . . . 40 10 . 5 Lost Ally 10 | . . 10 . . . . Purge Threat 300 | . . . 300 . . . Squads Dispatched 10 | . 5 . 5 . . . Investigation 5 | . 3 . 2 . . . Extermination . | . . . . . . . Reinforcement 4 | . 2 . 2 . . . Assault 1 | . . . 1 . . . Garrison . | . . . . . . . Intercept . | . . . . . . . Searches Triggered . | . . . . . . . Construction Impeded . | . . . . . . . Haulers Reinforced . | . . . . . . . Active Scanning Responses . | . . . . . . . Cargo Convoy Interrupts . | . . . . . . . Stealth | -11 -10 -10 -9 -9 -9 -8 --------- Run | Yrd Mat Min Mat Min Exi Min Distress Signals 3 | . 1 . 2 . . . Communications Jammed . | . . . . . . . Distress Signals . | . . . . . . . Times Spotted 119 | . 37 5 52 9 15 1 Peak Tracking Total 9 | . 4 2 5 3 9 1 Tactical Retreats 12 | . 4 1 3 . 4 . Traps | -11 -10 -10 -9 -9 -9 -8 ------- Run | Yrd Mat Min Mat Min Exi Min Traps Triggered 3 | . 3 . . . . . Indirectly . | . . . . . . . Trap Hack Attempts . | . . . . . . . Triggered . | . . . . . . . Disarmed . | . . . . . . . Reprogrammed . | . . . . . . . Reused . | . . . . . . . Traps Extracted . | . . . . . . . Installed . | . . . . . . . Triggered . | . . . . . . . Machines | -11 -10 -10 -9 -9 -9 -8 ---------- Run | Yrd Mat Min Mat Min Exi Min Machines Disabled 12 | . . . 2 . 10 . Max in Single Turn 2 | . . . 1 . 2 . Machines Repaired . | . . . . . . . Machines Dismantled . | . . . . . . . Machines Sabotaged . | . . . . . . . Overloaded Fab Kills . | . . . . . . . Hacking | -11 -10 -10 -9 -9 -9 -8 --------- Run | Yrd Mat Min Mat Min Exi Min Machines Accessed 24 | . 9 . 13 . 2 . Terminals 15 | . 6 . 9 . . . Fabricators . | . . . . . . . Repair Stations 2 | . 1 . 1 . . . Recycling Units 4 | . 2 . 2 . . . Scanalyzers 1 | . . . 1 . . . Garrison Access . | . . . . . . . Total Hacks 72 | . 33 . 37 . 2 . Successful 42 | . 19 . 21 . 2 . Failed 29 | . 13 . 16 . . . Catastrophic 2 | . . . 2 . . . Database Lockouts 1 | . 1 . . . . . Manual 50 | . 24 . 25 . 1 . Terminals 55 | . 24 . 31 . . . Fabricators . | . . . . . . . Repair Stations 8 | . 6 . 2 . . . Recycling Units 5 | . 3 . 2 . . . Scanalyzers 2 | . . . 2 . . . Garrison Access . | . . . . . . . Terminal Hacks 12 | . 3 . 7 . 2 . Record 1 | . . . . . 1 . Part Schematic 1 | . 1 . . . . . Robot Analysis 2 | . . . 2 . . . Prototype ID Bank 1 | . . . 1 . . . Terminal Index 1 | . . . 1 . . . Alert Level 2 | . 1 . 1 . . . Unreport Threat 2 | . . . 2 . . . Locate Traps 1 | . 1 . . . . . Proto ID Catalog 1 | . . . . . 1 . Fabricator Hacks . | . . . . . . . Repair Station Hacks 8 | . 6 . 2 . . . Scan Component 4 | . 3 . 1 . . . Repair 4 | . 3 . 1 . . . Recycling Unit Hacks . | . . . . . . . Scanalyzer 1 | . . . 1 . . . Retrieve Study 1 | . . . 1 . . . Garrison Access Hacks . | . . . . . . . Unauthorized Hacks 21 | . 10 . 11 . . . Terminals 18 | . 9 . 9 . . . Track 1 | . . . 1 . . . Assimilate 1 | . 1 . . . . . Botnet 4 | . 2 . 2 . . . Operators 2 | . 1 . 1 . . . Skim 10 | . 5 . 5 . . . Fabricators . | . . . . . . . Repair Stations . | . . . . . . . Recycling Units 3 | . 1 . 2 . . . Tunnel 3 | . 1 . 2 . . . Scanalyzers . | . . . . . . . Garrison Access . | . . . . . . . Data Cores Recovered . | . . . . . . . Used . | . . . . . . . Hacking Detections 19 | . 8 . 11 . . . Full Trace Events 2 | . 1 . 1 . . . Feedback Events . | . . . . . . . Feedback Blocked . | . . . . . . . Robot Schematics Acquired . | . . . . . . . Robots Built . | . . . . . . . Authchips . | . . . . . . . Time . | . . . . . . . Total Robot Build Rating . | . . . . . . . Part Schematics Acquired 1 | . 1 . . . . . Parts Built . | . . . . . . . Authchips . | . . . . . . . Time . | . . . . . . . Total Part Build Rating . | . . . . . . . Part Studies Acquired 1 | . . . 1 . . . Parts Repaired 4 | . 3 . 1 . . . Time 154 | . 103 . 51 . . . Parts Recycled . | . . . . . . . Recycled Matter . | . . . . . . . Retrieved Matter . | . . . . . . . Retrieved Components . | . . . . . . . Parts Scanalyzed . | . . . . . . . Part Schematics Acquired . | . . . . . . . Parts Damaged . | . . . . . . . Bothacking | -11 -10 -10 -9 -9 -9 -8 ------------ Run | Yrd Mat Min Mat Min Exi Min Used RIF Installer . | . . . . . . . Robots Hacked 3 | . . . . . 3 . Non-combat 2 | . . . . . 2 . Combat 1 | . . . . . 1 . Robot Hacks Applied 3 | . . . . . 3 . parse_system 3 | . . . . . 3 . Relay Couplers Released . | . . . . . . . Fabnet Peak Effective % . | . . . . . . . Robots Rewired . | . . . . . . . Allies Hacked . | . . . . . . . Hacks Repelled . | . . . . . . . Allies | -11 -10 -10 -9 -9 -9 -8 -------- Run | Yrd Mat Min Mat Min Exi Min Total Allies 1 | . 1 . . . . . Largest Group 1 | . 1 1 . . . . Highest-Rated Group 10 | . 10 10 . . . . Highest-Rated Ally 10 | . 10 10 . . . . Total Orders . | . . . . . . . Ally Attacks . | . . . . . . . Total Damage . | . . . . . . . Kills . | . . . . . . . Allies Corrupted . | . . . . . . . Allies Melted . | . . . . . . . Intel | -11 -10 -10 -9 -9 -9 -8 ------- Run | Yrd Mat Min Mat Min Exi Min Active Infowar (turns) 889 | . 577 271 . . . 41 Seismic 848 | . 577 271 . . . . Cloaking 41 | . . . . . . 41 Robot Analysis Total 2 | . . . 2 . . . Derelict Logs Recovered 3 | . . 2 . 1 . . Drone Launches . | . . . . . . . Drone Recoveries . | . . . . . . . Exploration | -11 -10 -10 -9 -9 -9 -8 ------------- Run | Yrd Mat Min Mat Min Exi Min Turns Passed 8244 | 125 2256 724 2386 667 1941 145 Spaces Moved 4238 | 64 1147 413 1141 380 1009 84 Core 27 | 27 . . . . . . Treads 1695 | . 981 413 266 . 35 . Legs 201 | 37 164 . . . . . Wheels 2291 | . 2 . 875 380 974 60 Hover 24 | . . . . . . 24 Flight . | . . . . . . . Fastest Speed 50 | 50 120 160 150 150 150 61 Average Speed 156 | 90 154 160 155 164 158 146 Slowest Speed 200 | 120 160 160 165 165 200 180 Overloaded Moves . | . . . . . . . Propulsion Burnouts . | . . . . . . . Robots Hopped . | . . . . . . . Potential Cave-ins . | . . . . . . . Cave-ins Triggered . | . . . . . . . Exploration Rate (%) 66 | 5 99 88 93 59 90 29 Regions Visited 6 Branch Regions 4 Pre-discovered Areas 8 | . 1 . 6 . 1 . Known Exits Taken 2 | . . 1 1 . . . Unknown Exits Taken 4 | 1 1 . . 1 1 . Scrap Searched 3 | . . 1 . 1 . 1 Spaces Dug 23 | . . . 9 14 . . Terrain Destroyed 98 | . . . 34 43 21 . Melee . | . . . . . . . Projectile . | . . . . . . . AOE 98 | . . . 34 43 21 . Terrain Rammed . | . . . . . . . Walls Destroyed . | . . . . . . . Machines Disabled . | . . . . . . . Actions | -11 -10 -10 -9 -9 -9 -8 --------- Run | Yrd Mat Min Mat Min Exi Min Total 5199 | 99 1460 440 1490 399 1210 101 Wait 330 | . 159 . 124 . 47 . Move 4232 | 63 1146 412 1140 379 1008 84 Hop . | . . . . . . . Pick Up 85 | 12 18 . 27 2 26 . Fast Attach 20 | 2 9 1 7 . 1 . Attach 24 | 5 . . 6 1 10 2 Detach 4 | . . . . . 3 1 Swap 63 | . 9 2 29 5 13 5 Drop 80 | 1 18 . 33 1 21 6 Fire 326 | 16 84 14 120 11 78 3 Melee 3 | . . . . . 3 . Ram 1 | . . . 1 . . . Kick 4 | . 4 . . . . . Crush 27 | . 13 11 3 . . . Escape Stasis . | . . . . . . . Rewire . | . . . . . . . Trap . | . . . . . . . Miscellaneous . | . . . . . . . Route ------- -11/Scrapyard -10/Materials (discovered 5 exits: *Mat x3 / [*Min] / [*Sub]) -10/Mines (discovered 3 exits: *Mat x2 / [*Sub]) -9/Materials (discovered 5 exits: *Mat x3 / *Min x2) -9/Mines (discovered 3 exits: *Mat x2 / *Exi) -9/Exiles (discovered 2 exits: [*Min x2]) -8/Mines History --------- Turn | Location | Event 3 | -11/Scrapyard | Discovered new exit (range 16) 126 | -11/Scrapyard | Entered Materials 317 | -10/Materials | Build established: Mutant 325 | -10/Materials | Discovered new exit (range 14) 723 | -10/Materials | Discovered new exit (range 11) 1116 | -10/Materials | Build established: Scavenger-Mutant 1219 | -10/Materials | Discovered new exit (range 13) 1627 | -10/Materials | Discovered new exit (range 8) 1722 | -10/Materials | Build established: Mutant 1764 | -10/Materials | Central database locked down 1877 | -10/Materials | Learned location of 2 exits from Subcaves 1925 | -10/Materials | Learned Storage non-interactive machine intel 1949 | -10/Materials | Discovered new exit (range 11) 1993 | -10/Materials | Learned location of 1 exit from Recycling 2021 | -10/Materials | Loaded intel: 11 trap records 2043 | -10/Materials | Learned Storage security intel 2046 | -10/Materials | Repaired Hvy. Ion Engine 2074 | -10/Materials | Repaired Lgt. Treads 2101 | -10/Materials | Repaired Lgt. Treads 2382 | -10/Materials | Entered Mines 2382 | -10/Mines | Accompanied by 1 ally 2383 | -10/Mines | Identified exit to Materials 2387 | -10/Mines | Core integrity fell below 50% 2832 | -10/Mines | Discovered new exit (range 10) 3008 | -10/Mines | Learned Materials emergency access door positions 3102 | -10/Mines | Met a Derelict testing a Signal Generator 3106 | -10/Mines | Entered Materials 3106 | -9/Materials | Evolved 2 slots: Propulsion x1, Weapon x1 3107 | -9/Materials | Identified exit to Mines 3399 | -9/Materials | Build established: Tank 3945 | -9/Materials | Discovered new exit (range 13) 4378 | -9/Materials | Lost 3 parts (1u2w) 4417 | -9/Materials | Loaded intel: 14 trap records 4451 | -9/Materials | Learned location of Zion (-7) 4473 | -9/Materials | Learned 4 Recycling zone layouts 4484 | -9/Materials | Identified exit to Materials 4488 | -9/Materials | Learned Storage security intel 4489 | -9/Materials | Learned location of Mines (-9) 4631 | -9/Materials | Build established: Scavenger-Gunner 4706 | -9/Materials | First assault squad dispatched 5462 | -9/Materials | Repaired Imp. Assault Rifle 5492 | -9/Materials | Entered Mines 5545 | -9/Mines | Received a Rocket Launcher from a helpful Derelict 5688 | -9/Mines | Learned location of 1 exit from Materials 5693 | -9/Mines | Discovered exit to Materials (range 5) 5816 | -9/Mines | Build established: Tank 5912 | -9/Mines | Discovered exit to Materials (range 7) 6151 | -9/Mines | Deemed a non-threat by the Exiles lab entrance 6152 | -9/Mines | Discovered new exit (range 5) 6159 | -9/Mines | Entered Exiles 6184 | -9/Exiles | Discovered new exit (range 15) 6207 | -9/Exiles | Met 8R-AWN 6230 | -9/Exiles | Met EX-HEX 6312 | -9/Exiles | Met EX-DEC 6519 | -9/Exiles | Build established: Mutant 6832 | -9/Exiles | Met EX-BIN 6848 | -9/Exiles | Aligned with FarCom system 6850 | -9/Exiles | Given EX-Vault access code 6884 | -9/Exiles | Opened EX-Vault 6923 | -9/Exiles | Warned to stay clear of 0b10 Research branches 7000 | -9/Exiles | Found Gui. Plasma Cannon 7106 | -9/Exiles | Attacked by the Exiles 7242 | -9/Exiles | Core integrity fell below 50% 7259 | -9/Exiles | Lost 3 parts (1n2w) 7306 | -9/Exiles | Destroyed 8R-AWN 7323 | -9/Exiles | Lost 3 parts (2n1u) 7402 | -9/Exiles | Build established: Tank 7557 | -9/Exiles | Found Modified TNC 7565 | -9/Exiles | Found Cloak of Protection 7754 | -9/Exiles | Destroyed EX-BIN 7766 | -9/Exiles | Destroyed EX-HEX 7798 | -9/Exiles | Destroyed EX-DEC 7883 | -9/Exiles | Found Exp. Core Analyzer 8086 | -9/Exiles | Discovered new exit (range 10) 8100 | -9/Exiles | Stole three prototypes: Modified TNC, Cloak of Protection, Gui. Plasma Cannon 8100 | -9/Exiles | Entered Mines 8133 | -8/Mines | Found DCF Scrap (12 items) 8207 | -8/Mines | P1-3CE came to Exiles' defense 8241 | -8/Mines | Core integrity fell below 20% 8245 | -8/Mines | Destroyed by P1-3CE with P1-3CE's Gatling Flakker Last Messages --------------- 08133_ Found 179 Matter. A note is attached: "With love, from the DCF." 08134_ Acquired 118 matter. 08156_ Acquired 10 matter. 08164_ System corrupted: Heat flow error (+246). 08192_ T-07 Excavator destroyed. 08205_ System corrupted: Energy discharge (-114). 08207_ P1-3CE: "I came as fast as I could... Wait, it was you!" 08211_ Lgt. Treads+ destroyed. 08211_ Knocked back. 08218_ Dropped Lgt. Treads+. 08220_ Dropped Arm. Wheel. 08220_ Dropped Mni. Grenade Launcher. 08224_ Dropped Med. Armor Plating. 08224_ Dropped Autogun. 08234_ #2RQH0XMJD5&UG #AZT%DRNDQA,:VMP 08240_ T-07 Excavator destroyed. 08240_ Mak. Power Source destroyed. 08241_ Imp. Assault Rifle destroyed. 08245_ Mak. Hover Unit destroyed. Map ----- +----------------------------------------------------+ | ??????????????????# ]! = # | | ?????????????????## ==#######""##%= # | | ?????????????????#" [=#??????##?#! | | ????????????????## ###??? #### | | ????????????????# ### #### | | ????????????????# #?## | | ????????????????## #???### | | ?????????????????## ##??????# | | ??????????????????## ###???????? | | ???????????????????## ##?????????? | | ??????????????######## "### #??????????? | | ??????????# #???# ##??????????? | | ??????????????######## #????###???????????? | | ?????????????????????# #??????????????????? | | ?????????????????????# #??????????????????? | | ????????????????????#; ########???????????? | | ???????????????????## # ####????????? | | ??????????????????## ##???????? | | ?????????????????## #???????? | | ????????????????## ????? | | ????????????##### #### ###?????? | | ????????????# % #####??????##???????? | | ????????????# #### ##???????????????????? | | ?????????????????# ##????????????????????? | | ????????????????## ##?????????????????????? | | ????????????????# @#??????????????????????? | | ????????????????# #??????????????????????? | | ??????????????? ??????????????????????? | | ????????????? ??????????????????????? | | ????????????###### ?????????????????????? | | ?????????????????## ?????????????????????? | | ??????????????????# ????????????????????? | | ??????????????????## ????????????????????? | | ????????????????????# ???????????????????? | | ????????????????????? ???????????????????? | | ????????????????????? ??????????????????? | | ?????????????????????## ??????????????????? | | ???????????????????????###?????????????????? | | ???????????????????????????????????????????? | | ???????????????????????????????????????????? | | ???????????????????????????????????????????? | | ???????????????????????????????????????????? | | ???????????????????????????????????????????? | | ???????????????????????????????????????????? | | ???????????????????????????????????????????? | | ???????????????????????????????????????????? | | ???????????????????????????????????????????? | | ???????????????????????????????????????????? | | ???????????????????????????????????????????? | | ???????????????????????????????????????????? | +----------------------------------------------------+ Best States ------------- Heat Dissipation 50 Energy Generation 19 Energy Capacity 310 Matter Stores 300 Matter Capacity 300 Sight Range 16 Terrain Scan Density 10 Cloak Strength 5 Armor Coverage 225 Evasion (%) 55 Recoil Reduction 3 Authchip Count 1 Item Schematics ----------------- Huge Storage Unit | -10/Materials | Hacked Robot Schematics ------------------ None Fabricated ------------ Nothing Repaired ---------- Hvy. Ion Engine | 59% | -10/Materials Lgt. Treads | 47% | -10/Materials Lgt. Treads | 56% | -10/Materials Imp. Assault Rifle | 51% | -9/Materials Studied --------- Lgt. Treads | -9/Materials | Hacked Alien Tech Used ----------------- None Achievements -------------- None Challenges ------------ None Game ------ Seed SigixArmoredGuard Manual? 0 Play Time 01:03:50 Cumulative 583.3 hours Start 2025.10.31 @ 13:39:01 End 2025.10.31 @ 15:30:45 Sessions 1 Manual Loads 0 Difficulty Rogue Special Mode None Game No. 222 Rogue 222 Adventurer 0 Explorer 0 Win Type - Total 23 Types 13/1/5/2/0/1/0/1/0/0 Lore% 92 Gallery% 84 Achievement% 63 Wizard Run 0 Options --------- Layout 0 ASCII 0 Keyboard 1 Movement Numpad Keybinds 0 Fullscreen 2 Font 18/SmallcapsGlow Map View 76x50 Zoom Use 0% Tactical HUD 1 Map Filters NONE Filters NONE Steam X RUN: 589f58b7-74f1-472b-976a-403ed5f8307e